[Event "Bremer Silvester Open-B 2024"]
[Site "Bremen"]
[Date "2024.12.28"]
[Round "3.2"]
[White "Klose, Eli"]
[Black "Wildt, Alexander"]
[Result "0-1"]
[ECO "D12"]
[WhiteElo "1669"]
[BlackElo "1845"]
[Annotator "NA RC"]
[PlyCount "82"]
[EventDate "2024.12.16"]
[EventType "swiss"]
[EventCountry "GER"]
[SourceTitle "playchess.com"]
[Source "ChessBase"]
[SourceQuality "1"]
[TimeControl "5400+30"]

1. d4 {[%emt 0:00:05]} d5 {[%emt 0:00:04]} 2. Nf3 {[%emt 0:00:07]} Nf6 {[%emt 0:00:05]} 3. c4 {[%emt 0:00:13]} c6 {[%emt 0:00:31]} 4. Nc3 {[%emt 0:00:10]} Bf5 {[%emt 0:00:34]} 5. e3 {[%emt 0:02:52]} e6 {[%emt 0:00:09]} 6. Be2 {[%emt 0:00:19]} Bd6 {[%emt 0:00:14]} 7. Nh4 {[%emt 0:01:41]} Be4 {[%emt 0:00:33]} 8. f3 {[%emt 0:00:27]} Bg6 {[%emt 0:00:14]} 9. Nxg6 {[%emt 0:00:16]} hxg6 {[%emt 0:00:03]} 10. f4 {[%emt 0:00:45]} Nh5 {[%emt 0:01:48]} 11. Bxh5 {[%emt 0:04:02]} Rxh5 {[%emt 0:01:07]} 12. Qe2 {[%emt 0:02:52]} Nd7 {[%emt 0:00:52]} 13. cxd5 {[%emt 0:02:47]} exd5 {[%emt 1:30:46]} 14. e4 {[%emt 0:10:58]} dxe4 {[%emt 0:00:00]} 15. Nxe4 {[%emt 0:01:28]} Be7 {[%emt 0:00:00]} 16. g4 {[%emt 0:10:50]} Rd5 {[%emt 0:00:00]} 17. Bd2 {[%emt 0:09:49]} Rxd4 {[%emt 0:00:00]} 18. Bc3 {[%emt 0:04:43]} Rd5 {[%emt 0:00:00]} 19. Bxg7 {[%emt 0:00:55]} Qa5+ {[%emt 0:00:00]} 20. Bc3 {[%emt 0:08:23]} Qc7 {[%emt 0:00:00]} 21. Bf6 {[%emt 0:04:26]} Qxf4 {[%emt 0:00:00]} 22. Rf1 {[%emt 0:06:40]} Qc7 {[%emt 0:00:00]} 23. Nc3 {[%emt 0:00:12]} Nxf6 {[%emt 0:00:00]} 24. Nxd5 {[%emt 0:01:25]} Nxd5 {[%emt 0:00:00]} 25. O-O-O {[%emt 0:01:24]} O-O-O {[%emt 0:00:00]} 26. Kb1 {[%emt 0:00:53]} Rf8 {[%emt 0:00:00]} 27. Rxf7 {[%emt 0:05:58]} Rxf7 {[%emt 0:00:00]} 28. Qe6+ {[%emt 0:00:03]} Qd7 {[%emt 0:00:00]} 29. Qxf7 {[%emt 0:00:05]} Nc3+ {[%emt 0:00:00]} 30. bxc3 {[%emt 0:00:52]} Qxd1+ {[%emt 0:00:00]} 31. Kb2 {[%emt 0:00:08]} Qd2+ {[%emt 0:00:00]} 32. Kb1 {[%emt 0:01:10]} Qd6 {[%emt 0:00:00]} 33. Qf2 {[%emt 0:04:26]} Bf6 {[%emt 0:00:00]} 34. Qc2 {[%emt 0:00:57]} g5 {[%emt 0:00:00]} 35. Qf5+ {[%emt 0:00:26]} Kb8 {[%emt 0:00:00]} 36. Qf3 {[%emt 0:02:06]} Be5 {[%emt 0:00:00]} 37. h3 {[%emt 0:01:02]} Bf4 {[%emt 0:00:00]} 38. Qe2 {[%emt 0:00:21]} Qe5 {[%emt 0:00:00]} 39. Qd1 {[%emt 0:00:52]} Qd5 {[%emt 0:00:00]} 40. Qe1 {[%emt 0:02:03]} Qd3+ {[%emt 0:00:00]} 41. Kb2 {[%emt 0:00:47]} Qd2+ {[%emt 0:00:00]} 0-1

[Event "Bremer Silvester Open-B 2024"]
[Site "Bremen"]
[Date "2024.12.28"]
[Round "3.4"]
[White "Van Gaalen, Jakob"]
[Black "Supplieth, Peter"]
[Result "0-1"]
[ECO "B03"]
[WhiteElo "1713"]
[BlackElo "1890"]
[Annotator "NA RC"]
[PlyCount "108"]
[EventDate "2024.12.16"]
[EventType "swiss"]
[EventCountry "GER"]
[SourceTitle "playchess.com"]
[Source "ChessBase"]
[SourceQuality "1"]
[TimeControl "5400+30"]

1. e4 {[%emt 0:00:08]} Nf6 {[%emt 0:00:07]} 2. e5 {[%emt 0:00:22]} Nd5 {[%emt 0:00:05]} 3. d4 {[%emt 0:00:14]} d6 {[%emt 0:00:05]} 4. c4 {[%emt 0:00:47]} Nb6 {[%emt 0:00:05]} 5. f4 {[%emt 0:01:55]} dxe5 {[%emt 0:00:05]} 6. fxe5 {[%emt 0:00:09]} Nc6 {[%emt 0:00:11]} 7. Be3 {[%emt 0:00:16]} Bf5 {[%emt 0:00:06]} 8. Nc3 {[%emt 0:01:03]} e6 {[%emt 0:00:14]} 9. Nf3 {[%emt 0:01:43]} Be7 {[%emt 0:00:09]} 10. Be2 {[%emt 0:00:49]} O-O {[%emt 0:00:07]} 11. O-O {[%emt 0:00:09]} f6 {[%emt 0:00:05]} 12. exf6 {[%emt 0:01:28]} Bxf6 {[%emt 0:00:08]} 13. Qd2 {[%emt 0:01:04]} Qe8 {[%emt 0:03:19]} 14. Rad1 {[%emt 0:07:58]} Rd8 {[%emt 0:00:38]} 15. Qc1 {[%emt 0:06:53]} a6 {[%emt 0:00:35]} 16. Kh1 {[%emt 0:01:14]} Kh8 {[%emt 0:06:04]} 17. b3 {[%emt 0:03:10]} Qg6 {[%emt 0:01:39]} 18. Rd2 {[%emt 0:12:23]} h6 {[%emt 0:04:09]} 19. Qe1 {[%emt 0:09:41]} Qe8 {[%emt 0:08:25]} 20. Qg3 {[%emt 0:03:25]} Qe7 {[%emt 0:04:46]} 21. Nd1 {[%emt 0:08:28]} Bh7 {[%emt 0:02:54]} 22. Nf2 {[%emt 0:02:17]} e5 {[%emt 0:07:30]} 23. d5 {[%emt 0:02:51]} Nd4 {[%emt 0:00:13]} 24. Nxd4 {[%emt 0:00:51]} exd4 {[%emt 0:00:11]} 25. Bf4 {[%emt 0:07:27]} Bh4 {[%emt 0:00:14]} 26. Qg4 {[%emt 0:00:46]} Bxf2 {[%emt 0:17:45]} 27. Rxf2 {[%emt 0:00:51]} d3 {[%emt 0:01:53]} 28. Bf1 {[%emt 0:01:57]} Nd7 {[%emt 0:02:55]} 29. Kg1 {[%emt 0:09:10]} Nf6 {[%emt 0:02:12]} 30. Qh4 {[%emt 0:02:19]} g5 {[%emt 0:09:18]} 31. Bxg5 {[%emt 0:14:12]} hxg5 {[%emt 0:00:08]} 32. Qxg5 {[%emt 0:00:00]} Nxd5 {[%emt 0:00:37]} 33. Rxf8+ {[%emt 0:00:00]} Rxf8 {[%emt 0:00:30]} 34. Qxe7 {[%emt 0:00:00]} Nxe7 {[%emt 0:00:11]} 35. g3 {[%emt 0:00:00]} Nc6 {[%emt 0:00:40]} 36. Bg2 {[%emt 0:00:00]} Rf6 {[%emt 0:01:20]} 37. h4 {[%emt 0:00:00]} b6 {[%emt 0:00:16]} 38. Kh2 {[%emt 0:00:00]} Ne5 {[%emt 0:00:23]} 39. Kh3 {[%emt 0:00:00]} Bf5+ {[%emt 0:01:31]} 40. Kh2 {[%emt 0:00:00]} Bg4 {[%emt 0:01:55]} 41. Kg1 {[%emt 0:00:00]} Rf3 {[%emt 0:03:24]} 42. Bxf3 {[%emt 0:01:15]} Nxf3+ {[%emt 0:00:08]} 43. Kf2 {[%emt 0:00:05]} Nxd2 {[%emt 0:00:15]} 44. Ke3 {[%emt 0:00:05]} Ne4 {[%emt 0:02:07]} 45. Kxd3 {[%emt 0:00:11]} Nxg3 {[%emt 0:00:31]} 46. b4 {[%emt 0:00:55]} Kg7 {[%emt 0:01:52]} 47. Kd4 {[%emt 0:00:13]} Kf6 {[%emt 0:00:34]} 48. Kd5 {[%emt 0:00:56]} Bf3+ {[%emt 0:00:18]} 49. Kd4 {[%emt 0:00:15]} Nf5+ {[%emt 0:00:05]} 50. Kc3 {[%emt 0:00:19]} Nxh4 {[%emt 0:00:08]} 51. a4 {[%emt 0:00:13]} Ke5 {[%emt 0:01:23]} 52. b5 {[%emt 0:00:32]} a5 {[%emt 0:00:23]} 53. c5 {[%emt 0:00:24]} Kd5 {[%emt 0:00:12]} 54. cxb6 {[%emt 0:00:10]} cxb6 {[%emt 0:22:32]} 0-1

[Event "Bremer Silvester Open-B 2024"]
[Site "Bremen"]
[Date "2024.12.28"]
[Round "3.5"]
[White "Lattreuter, Alexander"]
[Black "Horstmann, Joerg"]
[Result "1-0"]
[ECO "D02"]
[WhiteElo "1841"]
[BlackElo "1710"]
[Annotator "NA RC"]
[PlyCount "63"]
[EventDate "2024.12.16"]
[EventType "swiss"]
[EventCountry "GER"]
[SourceTitle "playchess.com"]
[Source "ChessBase"]
[SourceQuality "1"]
[TimeControl "5400+30"]

1. d4 {[%emt 0:00:01]} d5 {[%emt 0:07:08]} 2. Bf4 {[%emt 0:00:21]} Nf6 {[%emt 0:00:42]} 3. Nf3 {[%emt 0:00:06]} c6 {[%emt 0:01:00]} 4. c3 {[%emt 0:01:02]} e6 {[%emt 0:03:39]} 5. e3 {[%emt 0:00:21]} Bd6 {[%emt 0:03:13]} 6. Bg3 {[%emt 0:00:42]} b6 {[%emt 0:05:02]} 7. Nbd2 {[%emt 0:00:36]} Bb7 {[%emt 0:01:05]} 8. Bd3 {[%emt 0:00:27]} Qe7 {[%emt 0:01:45]} 9. e4 {[%emt 0:01:13]} dxe4 {[%emt 0:04:54]} 10. Nxe4 {[%emt 0:00:04]} Bxg3 {[%emt 0:05:36]} 11. hxg3 {[%emt 0:00:11]} Nbd7 {[%emt 0:04:50]} 12. Qc2 {[%emt 0:03:10]} h5 {[%emt 0:02:46]} 13. O-O-O {[%emt 0:04:56]} Nxe4 {[%emt 0:04:06]} 14. Bxe4 {[%emt 0:00:10]} Nf6 {[%emt 0:00:15]} 15. Rhe1 {[%emt 0:04:05]} Nxe4 {[%emt 0:02:56]} 16. Qxe4 {[%emt 0:00:09]} O-O-O {[%emt 0:02:29]} 17. Ne5 {[%emt 0:05:18]} Qc7 {[%emt 0:11:59]} 18. Qf4 {[%emt 0:04:52]} Rhf8 {[%emt 0:03:16]} 19. f3 {[%emt 0:09:37]} Rd5 {[%emt 0:05:29]} 20. g4 {[%emt 0:03:47]} hxg4 {[%emt 0:08:15]} 21. Qxg4 {[%emt 0:00:11]} g6 {[%emt 0:04:13]} 22. Kb1 {[%emt 0:03:25]} Kb8 {[%emt 0:02:14]} 23. Qf4 {[%emt 0:07:40]} c5 {[%emt 0:02:34]} 24. Nxg6 {[%emt 0:01:04]} Qxf4 {[%emt 0:00:51]} 25. Nxf4 {[%emt 0:00:09]} Rf5 {[%emt 0:00:43]} 26. Nd3 {[%emt 0:01:15]} cxd4 {[%emt 0:00:24]} 27. cxd4 {[%emt 0:00:16]} Rd8 {[%emt 0:00:28]} 28. Ne5 {[%emt 0:00:52]} Rf4 {[%emt 0:01:31]} 29. Kc2 {[%emt 0:01:10]} Rc8+ {[%emt 0:01:38]} 30. Kd3 {[%emt 0:03:34]} Bd5 {[%emt 0:01:42]} 31. Ke3 {[%emt 0:01:37]} Rf6 {[%emt 0:09:17]} 32. Nd7+ {[%emt 0:44:09]} 1-0

[Event "Bremer Silvester Open-B 2024"]
[Site "Bremen"]
[Date "2024.12.28"]
[Round "3.6"]
[White "Ewers, Christian"]
[Black "Nafati, Meryem"]
[Result "1-0"]
[ECO "C23"]
[WhiteElo "1820"]
[BlackElo "1541"]
[Annotator "NA RC"]
[PlyCount "63"]
[EventDate "2024.12.16"]
[EventType "swiss"]
[EventCountry "GER"]
[SourceTitle "playchess.com"]
[Source "ChessBase"]
[SourceQuality "1"]
[TimeControl "5400+30"]

1. e4 e5 {[%emt 1:31:00]} 2. Bc4 {[%emt 0:01:01]} Bc5 {[%emt 0:00:00]} 3. Qg4 {[%emt 0:00:22]} Qf6 {[%emt 0:00:00]} 4. Qg3 {[%emt 0:00:05]} Ne7 {[%emt 0:00:00]} 5. d3 {[%emt 0:05:32]} Ng6 {[%emt 0:00:00]} 6. Ne2 {[%emt 0:01:34]} O-O {[%emt 0:00:00]} 7. Nbc3 {[%emt 0:00:48]} c6 {[%emt 0:00:00]} 8. O-O {[%emt 0:00:46]} b5 {[%emt 0:00:00]} 9. Bb3 {[%emt 0:00:15]} h6 {[%emt 0:00:00]} 10. Kh1 {[%emt 0:04:35]} a5 {[%emt 0:00:00]} 11. a3 {[%emt 0:00:18]} a4 {[%emt 0:00:00]} 12. Ba2 {[%emt 0:00:09]} d6 {[%emt 0:00:00]} 13. f4 {[%emt 0:01:19]} Be6 {[%emt 0:00:00]} 14. f5 {[%emt 0:03:50]} Bxa2 {[%emt 0:00:00]} 15. Nxa2 {[%emt 0:00:39]} Nd7 {[%emt 0:00:00]} 16. Bxh6 {[%emt 0:01:45]} gxh6 {[%emt 0:00:00]} 17. fxg6 {[%emt 0:00:55]} Qxg6 {[%emt 0:00:00]} 18. Qh3 {[%emt 0:01:00]} Ra7 {[%emt 0:00:00]} 19. Rf3 {[%emt 0:04:54]} Qe6 {[%emt 0:00:00]} 20. Rf5 {[%emt 0:03:37]} Kh7 {[%emt 0:00:00]} 21. Nb4 {[%emt 0:01:07]} Bxb4 {[%emt 0:00:00]} 22. axb4 {[%emt 0:00:02]} Rg8 {[%emt 0:00:00]} 23. Raf1 {[%emt 0:00:30]} f6 {[%emt 0:00:00]} 24. Qe3 {[%emt 0:00:32]} Raa8 {[%emt 0:00:00]} 25. Ng3 {[%emt 0:00:14]} Rg5 {[%emt 0:00:00]} 26. h4 {[%emt 0:01:16]} Rg4 {[%emt 0:00:00]} 27. Rh5 {[%emt 0:00:19]} Rf4 {[%emt 0:02:14]} 28. Rxf4 {[%emt 0:00:52]} exf4 {[%emt 0:00:55]} 29. Qxf4 {[%emt 0:00:13]} f5 {[%emt 0:00:52]} 30. Nxf5 {[%emt 0:00:17]} Rf8 {[%emt 0:01:08]} 31. Rxh6+ {[%emt 0:00:17]} Qxh6 {[%emt 0:00:11]} 32. Qxh6+ {[%emt 0:00:10]} 1-0

[Event "Bremer Silvester Open-B 2024"]
[Site "Bremen"]
[Date "2024.12.28"]
[Round "3.7"]
[White "Beeck, Sebastian"]
[Black "Tal, Alexander"]
[Result "1-0"]
[ECO "B90"]
[WhiteElo "1753"]
[BlackElo "1793"]
[Annotator "NA RC"]
[PlyCount "73"]
[EventDate "2024.12.16"]
[EventType "swiss"]
[EventCountry "GER"]
[SourceTitle "playchess.com"]
[Source "ChessBase"]
[SourceQuality "1"]
[TimeControl "5400+30"]

1. e4 {[%emt 0:00:09]} c5 {[%emt 0:00:26]} 2. Nf3 {[%emt 0:00:07]} d6 {[%emt 0:00:01]} 3. d4 {[%emt 0:00:07]} cxd4 {[%emt 0:00:03]} 4. Nxd4 {[%emt 0:00:05]} Nf6 {[%emt 0:00:04]} 5. Nc3 {[%emt 0:00:04]} a6 {[%emt 0:00:11]} 6. Be3 {[%emt 0:00:12]} e5 {[%emt 0:00:07]} 7. Nf3 {[%emt 0:00:05]} Be7 {[%emt 0:01:14]} 8. Bc4 {[%emt 0:01:27]} O-O {[%emt 0:02:31]} 9. O-O {[%emt 0:02:46]} Bg4 {[%emt 0:00:28]} 10. h3 {[%emt 0:04:41]} Bh5 {[%emt 0:00:08]} 11. a4 {[%emt 0:01:27]} Nbd7 {[%emt 0:00:57]} 12. a5 {[%emt 0:12:03]} Qc7 {[%emt 0:12:22]} 13. Bb3 {[%emt 0:09:11]} b5 {[%emt 0:03:07]} 14. axb6 {[%emt 0:03:19]} Nxb6 {[%emt 0:00:18]} 15. Bxb6 {[%emt 0:03:01]} Qxb6 {[%emt 0:00:11]} 16. Nd5 {[%emt 0:00:23]} Nxd5 {[%emt 0:00:12]} 17. Bxd5 {[%emt 0:00:24]} Ra7 {[%emt 0:02:12]} 18. g4 {[%emt 0:01:54]} Bg6 {[%emt 0:00:06]} 19. Qd3 {[%emt 0:06:22]} Rc8 {[%emt 0:05:19]} 20. b3 {[%emt 0:01:51]} Qc5 {[%emt 0:03:06]} 21. Ra2 {[%emt 0:01:15]} a5 {[%emt 0:01:05]} 22. Nd2 {[%emt 0:01:55]} Kf8 {[%emt 0:12:21]} 23. Nc4 {[%emt 0:02:48]} f6 {[%emt 0:01:10]} 24. Rfa1 {[%emt 0:00:54]} Bd8 {[%emt 0:00:26]} 25. Qd2 {[%emt 0:06:34]} Ke7 {[%emt 0:15:58]} 26. b4 {[%emt 0:05:21]} Qb5 {[%emt 0:01:46]} 27. Nxa5 {[%emt 0:02:03]} Bxa5 {[%emt 0:02:26]} 28. Rxa5 {[%emt 0:00:37]} Rxa5 {[%emt 0:00:00]} 29. Rxa5 {[%emt 0:00:30]} Qb6 {[%emt 0:00:21]} 30. c4 {[%emt 0:03:01]} Bf7 {[%emt 0:00:17]} 31. c5 {[%emt 0:03:10]} dxc5 {[%emt 0:00:19]} 32. Bxf7 {[%emt 0:00:44]} cxb4 {[%emt 0:01:50]} 33. Qa2 {[%emt 0:03:32]} Qd4 {[%emt 0:07:16]} 34. Qe6+ {[%emt 0:03:30]} Kf8 {[%emt 0:00:01]} 35. Qxc8+ {[%emt 0:00:12]} Kxf7 {[%emt 0:00:45]} 36. Qb7+ {[%emt 0:00:02]} Kg6 {[%emt 0:00:22]} 37. Ra7 {[%emt 0:01:59]} 1-0

[Event "Bremer Silvester Open-B 2024"]
[Site "Bremen"]
[Date "2024.12.28"]
[Round "4.1"]
[White "Wildt, Alexander"]
[Black "Supplieth, Peter"]
[Result "0-1"]
[ECO "D43"]
[WhiteElo "1845"]
[BlackElo "1890"]
[Annotator "NA RC"]
[PlyCount "54"]
[EventDate "2024.12.16"]
[EventType "swiss"]
[EventCountry "GER"]
[SourceTitle "playchess.com"]
[Source "ChessBase"]
[SourceQuality "1"]
[TimeControl "5400+30"]

1. d4 {[%emt 0:00:02]} d5 {[%emt 0:00:20]} 2. c4 {[%emt 0:00:06]} c6 {[%emt 0:00:14]} 3. Nf3 {[%emt 0:00:05]} Nf6 {[%emt 0:00:26]} 4. Nc3 {[%emt 0:00:06]} e6 {[%emt 0:00:45]} 5. Bf4 {[%emt 0:01:01]} dxc4 {[%emt 0:02:53]} 6. e4 {[%emt 0:00:39]} b5 {[%emt 0:01:00]} 7. a4 {[%emt 0:00:13]} Bb4 {[%emt 0:02:56]} 8. Bg5 {[%emt 0:02:32]} h6 {[%emt 0:04:17]} 9. Bh4 {[%emt 0:01:12]} g5 {[%emt 0:01:00]} 10. Nxg5 {[%emt 0:00:18]} hxg5 {[%emt 0:00:10]} 11. Bxg5 {[%emt 0:00:06]} Rg8 {[%emt 0:02:28]} 12. h4 {[%emt 0:01:11]} e5 {[%emt 0:02:53]} 13. Qf3 {[%emt 0:10:45]} exd4 {[%emt 0:11:54]} 14. Bxf6 {[%emt 0:00:31]} dxc3 {[%emt 0:03:18]} 15. bxc3 {[%emt 0:02:13]} Be7 {[%emt 0:04:58]} 16. Bxe7 {[%emt 0:06:27]} Qxe7 {[%emt 0:00:38]} 17. h5 {[%emt 0:00:45]} Qe5 {[%emt 0:08:26]} 18. h6 {[%emt 0:01:08]} Nd7 {[%emt 0:08:59]} 19. Rh5 {[%emt 0:04:07]} Qf6 {[%emt 0:01:30]} 20. Qe3 {[%emt 0:01:02]} Ne5 {[%emt 0:02:36]} 21. Qd4 {[%emt 0:04:45]} Ng4 {[%emt 0:10:49]} 22. Qc5 {[%emt 0:06:20]} Qxc3+ {[%emt 0:01:14]} 23. Ke2 {[%emt 0:00:18]} Bd7 {[%emt 0:13:02]} 24. Rd1 {[%emt 0:01:00]} f6 {[%emt 0:02:18]} 25. Qd6 {[%emt 0:02:37]} O-O-O {[%emt 0:02:08]} 26. axb5 {[%emt 0:01:21]} Qc2+ {[%emt 0:02:17]} 27. Ke1 {[%emt 0:01:31]} Qxf2# {[%emt 0:00:00]} 0-1

[Event "Bremer Silvester Open-B 2024"]
[Site "Bremen"]
[Date "2024.12.28"]
[Round "4.2"]
[White "Hattenhauer, Klaus"]
[Black "Beeck, Sebastian"]
[Result "1/2-1/2"]
[ECO "D02"]
[WhiteElo "1848"]
[BlackElo "1753"]
[Annotator "NA RC"]
[PlyCount "93"]
[EventDate "2024.12.16"]
[EventType "swiss"]
[EventCountry "GER"]
[SourceTitle "playchess.com"]
[Source "ChessBase"]
[SourceQuality "1"]
[TimeControl "5400+30"]

1. d4 {[%emt 0:00:02]} Nf6 {[%emt 0:00:13]} 2. Nf3 {[%emt 0:00:15]} d5 {[%emt 0:00:16]} 3. Bf4 {[%emt 0:00:14]} c5 {[%emt 0:01:09]} 4. c3 {[%emt 0:00:29]} Nc6 {[%emt 0:01:45]} 5. e3 {[%emt 0:00:36]} Qb6 {[%emt 0:00:16]} 6. Qb3 {[%emt 0:00:44]} c4 {[%emt 0:00:23]} 7. Qxb6 {[%emt 0:00:58]} axb6 {[%emt 0:00:08]} 8. Nbd2 {[%emt 0:00:48]} b5 {[%emt 0:01:08]} 9. Ne5 {[%emt 0:02:23]} Nxe5 {[%emt 0:04:24]} 10. Bxe5 {[%emt 0:01:32]} Ng4 {[%emt 0:00:36]} 11. Bf4 {[%emt 0:04:08]} Bf5 {[%emt 0:01:01]} 12. f3 {[%emt 0:03:44]} Nf6 {[%emt 0:01:33]} 13. g4 {[%emt 0:03:45]} Bg6 {[%emt 0:02:26]} 14. Bg2 {[%emt 0:03:23]} e6 {[%emt 0:03:26]} 15. h4 {[%emt 0:07:01]} b4 {[%emt 0:04:51]} 16. O-O {[%emt 0:03:07]} bxc3 {[%emt 0:02:14]} 17. bxc3 {[%emt 0:00:23]} Ba3 {[%emt 0:00:29]} 18. e4 {[%emt 0:03:31]} dxe4 {[%emt 0:10:44]} 19. fxe4 {[%emt 0:11:41]} Bb2 {[%emt 0:23:08]} 20. Rab1 {[%emt 0:02:38]} Bxc3 {[%emt 0:01:37]} 21. Nxc4 {[%emt 0:04:21]} Bxd4+ {[%emt 0:02:06]} 22. Be3 {[%emt 0:04:50]} Bxe3+ {[%emt 0:00:39]} 23. Nxe3 {[%emt 0:00:09]} O-O {[%emt 0:04:36]} 24. Rb4 {[%emt 0:03:52]} Rxa2 {[%emt 0:10:51]} 25. h5 {[%emt 0:03:34]} Rxg2+ {[%emt 0:00:35]} 26. Kxg2 {[%emt 0:02:48]} Bxe4+ {[%emt 0:00:09]} 27. Kg3 {[%emt 0:02:36]} Bc6 {[%emt 0:01:01]} 28. Rc1 {[%emt 0:04:59]} Rd8 {[%emt 0:02:19]} 29. Rd1 {[%emt 0:04:13]} Nd5 {[%emt 0:02:45]} 30. Nxd5 {[%emt 0:01:21]} Bxd5 {[%emt 0:00:52]} 31. Rxb7 {[%emt 0:01:05]} Kf8 {[%emt 0:04:37]} 32. Rc7 {[%emt 0:00:51]} h6 {[%emt 0:03:14]} 33. Rf1 {[%emt 0:01:08]} e5 {[%emt 0:00:51]} 34. Rd1 {[%emt 0:02:08]} Ke8 {[%emt 0:00:57]} 35. Rc5 {[%emt 0:00:44]} Be6 {[%emt 0:00:47]} 36. Rxd8+ {[%emt 0:00:22]} Kxd8 {[%emt 0:00:06]} 37. Rxe5 {[%emt 0:00:28]} Ke7 {[%emt 0:00:21]} 38. Re1 {[%emt 0:00:46]} Kf6 {[%emt 0:00:57]} 39. Kf4 {[%emt 0:01:02]} Bb3 {[%emt 0:01:52]} 40. Rb1 {[%emt 0:01:27]} Be6 {[%emt 0:00:18]} 41. Rb6 {[%emt 0:00:38]} Ke7 {[%emt 0:02:12]} 42. g5 {[%emt 0:01:42]} hxg5+ {[%emt 0:02:22]} 43. Kxg5 {[%emt 0:00:10]} Kf8 {[%emt 0:02:03]} 44. Rb8+ {[%emt 0:00:52]} Ke7 {[%emt 0:00:10]} 45. Kf4 {[%emt 0:00:46]} Kf6 {[%emt 0:00:23]} 46. Rb6 {[%emt 0:02:00]} g5+ {[%emt 0:04:40]} 47. Ke4 {[%emt 0:13:46]} 1/2-1/2

[Event "Bremer Silvester Open-B 2024"]
[Site "Bremen"]
[Date "2024.12.28"]
[Round "4.3"]
[White "Lattreuter, Alexander"]
[Black "Jablonski, Ture"]
[Result "1-0"]
[ECO "C21"]
[WhiteElo "1841"]
[BlackElo "1718"]
[Annotator "NA RC"]
[PlyCount "65"]
[EventDate "2024.12.16"]
[EventType "swiss"]
[EventCountry "GER"]
[SourceTitle "playchess.com"]
[Source "ChessBase"]
[SourceQuality "1"]
[TimeControl "5400+30"]

1. e4 {[%emt 0:00:02]} e5 {[%emt 0:00:15]} 2. d4 {[%emt 0:00:04]} exd4 {[%emt 0:00:04]} 3. c3 {[%emt 0:00:06]} dxc3 {[%emt 0:00:04]} 4. Bc4 {[%emt 0:00:07]} cxb2 {[%emt 0:00:26]} 5. Bxb2 {[%emt 0:00:18]} Bb4+ {[%emt 0:00:05]} 6. Nc3 {[%emt 0:00:10]} Nf6 {[%emt 0:00:44]} 7. Qb3 {[%emt 0:00:11]} d5 {[%emt 0:02:01]} 8. exd5 {[%emt 0:01:32]} Bxc3+ {[%emt 0:08:00]} 9. Qxc3 {[%emt 0:00:09]} O-O {[%emt 0:01:33]} 10. Ne2 {[%emt 0:01:27]} c5 {[%emt 0:05:54]} 11. Rd1 {[%emt 0:05:04]} Qd6 {[%emt 0:02:48]} 12. O-O {[%emt 0:01:21]} Bf5 {[%emt 0:07:57]} 13. f3 {[%emt 0:02:47]} h5 {[%emt 0:00:54]} 14. Ng3 {[%emt 0:00:42]} Bg6 {[%emt 0:10:08]} 15. Ne4 {[%emt 0:00:23]} Qf4 {[%emt 0:04:01]} 16. Nxc5 {[%emt 0:06:33]} b6 {[%emt 0:02:53]} 17. Ne4 {[%emt 0:00:37]} Nbd7 {[%emt 0:05:51]} 18. Bb5 {[%emt 0:02:48]} Rac8 {[%emt 0:03:56]} 19. Qd4 {[%emt 0:01:00]} Rfd8 {[%emt 0:01:52]} 20. g3 {[%emt 0:01:52]} Qh6 {[%emt 0:00:26]} 21. Rc1 {[%emt 0:08:04]} Bxe4 {[%emt 0:03:09]} 22. fxe4 {[%emt 0:00:28]} Nc5 {[%emt 0:01:33]} 23. Rf4 {[%emt 0:13:16]} Kh7 {[%emt 0:25:40]} 24. Rcf1 {[%emt 0:02:29]} Ne6 {[%emt 0:00:47]} 25. Rxf6 {[%emt 0:00:16]} gxf6 {[%emt 0:01:45]} 26. Qxf6 {[%emt 0:03:37]} Ng5 {[%emt 0:00:40]} 27. h4 {[%emt 0:02:18]} Qxf6 {[%emt 0:00:26]} 28. Rxf6 {[%emt 0:00:12]} Nxe4 {[%emt 0:00:21]} 29. Bd3 {[%emt 0:00:36]} Re8 {[%emt 0:01:05]} 30. Rf4 {[%emt 0:01:36]} f5 {[%emt 0:00:11]} 31. Rxf5 {[%emt 0:00:24]} Nc5 {[%emt 0:04:06]} 32. Rxh5+ {[%emt 0:05:09]} Kg8 {[%emt 0:00:01]} 33. Bg6 {[%emt 0:01:15]} 1-0

[Event "Bremer Silvester Open-B 2024"]
[Site "Bremen"]
[Date "2024.12.28"]
[Round "4.6"]
[White "Maeder, Christian"]
[Black "Flemming, Klaus"]
[Result "1-0"]
[ECO "C02"]
[WhiteElo "1995"]
[BlackElo "1802"]
[Annotator "NA RC"]
[PlyCount "42"]
[EventDate "2024.12.16"]
[EventType "swiss"]
[EventCountry "GER"]
[SourceTitle "playchess.com"]
[Source "ChessBase"]
[SourceQuality "1"]
[TimeControl "5400+30"]

1. e4 {[%emt 0:00:03]} e6 {[%emt 0:00:14]} 2. d4 {[%emt 0:00:04]} d5 {[%emt 0:00:11]} 3. e5 {[%emt 0:00:15]} c5 {[%emt 0:00:16]} 4. c3 {[%emt 0:00:20]} Qb6 {[%emt 0:00:23]} 5. Nf3 {[%emt 0:00:54]} Nc6 {[%emt 0:01:16]} 6. Bd3 {[%emt 0:01:16]} cxd4 {[%emt 0:00:11]} 7. O-O {[%emt 0:00:48]} Bd7 {[%emt 0:01:03]} 8. a3 {[%emt 0:01:45]} dxc3 {[%emt 0:02:36]} 9. Nxc3 {[%emt 0:00:31]} a6 {[%emt 0:01:32]} 10. b4 {[%emt 0:02:17]} Nd4 {[%emt 0:02:08]} 11. Ng5 {[%emt 0:07:38]} Nb5 {[%emt 0:02:28]} 12. Na4 {[%emt 0:11:28]} Qd8 {[%emt 0:00:50]} 13. Re1 {[%emt 0:06:59]} g6 {[%emt 0:02:38]} 14. h4 {[%emt 0:02:04]} Be7 {[%emt 0:02:44]} 15. Qf3 {[%emt 0:02:47]} Nh6 {[%emt 0:01:09]} 16. Nxe6 {[%emt 0:06:32]} Bxe6 {[%emt 0:01:23]} 17. Bxh6 {[%emt 0:00:37]} Bxh4 {[%emt 0:06:50]} 18. Nc5 {[%emt 0:02:29]} Qe7 {[%emt 0:01:30]} 19. Qf4 {[%emt 0:05:44]} g5 {[%emt 0:00:40]} 20. Qd2 {[%emt 0:01:03]} g4 {[%emt 0:00:27]} 21. g3 {[%emt 0:00:38]} Nd4 {[%emt 1:10:31]} 1-0